Cogmind - Beta 14 @@@ ROGUE MODE // 2025.03.29 @ 19:51:37 Player: mix Result: Destroyed by S-10 Pest with Light Assault Rifle Performance ------------- Evolutions (0) 0 Regions Visited (1) 200 Robots Destroyed (0) 0 Value Destroyed (0) 0 Prototype IDs (0) 0 Alien Tech Used (0) 0 Bonus (0) 0 TOTAL SCORE: 200 Bonus ------- None Cogmind --------- Core Integrity 0/250 Matter 211/300 Energy 99/100 System Corruption 0% Temperature Cool (0) Movement Core (50) Location -10/Materials Parts ------- > --- POWER (1) -------- (None) > --- PROPULSION (2) --- (None) > --- UTILITY (2) ------ (None) > --- WEAPON (2) ------- (None) > --- INVENTORY (5) ---- Light Ion Engine Small Storage Unit Medium Battery (150) ECM Suite Peak State ------------ > --- POWER ------------ (None) > --- PROPULSION ------- (None) > --- UTILITY ---------- ECM Suite ECM Suite > --- WEAPON ----------- (None) > --- INVENTORY -------- Light Ion Engine Small Storage Unit [Rating: 2] Favorites ----------- Power Light Ion Engine Engine Light Ion Engine Propulsion None Utility ECM Suite Device ECM Suite Weapon None Build | -11 -10 ------- Run | Yrd Mat Slots Evolved . | . . Power . | . . Propulsion . | . . Utility . | . . Weapon . | . . Parts Attached 4 | 1 3 Power 1 | 1 . Engine 1 | 1 . Core . | . . Reactor . | . . Propulsion . | . . Treads . | . . Leg . | . . Wheel . | . . Hover . | . . Flight . | . . Utility 3 | . 3 Device 3 | . 3 Storage . | . . Processor . | . . Hackware . | . . Protection . | . . Artifact . | . . Weapon . | . . Energy Gun . | . . Energy Cannon . | . . Ballistic Gun . | . . Ballistic Cannon . | . . Launcher . | . . Special Weapon . | . . Impact Weapon . | . . Slashing Weapon . | . . Piercing Weapon . | . . Special Melee Weapon . | . . Unidentified Prototypes . | . . Parts Lost 2 | . 2 Power . | . . Propulsion . | . . Utility 2 | . 2 Weapon . | . . Highest Loss Streak 2 | . 2 To Critical Strikes . | . . Average Slot Usage (%) 11 | . 11 Device 11 | . 11 Peak Build Rating 2 | 1 2 Average Rating . | . . On Entrance . | . . Naked Turns 40 | . 40 Heaviest Build 3 | . 3 Greatest Support 3 | 3 3 Greatest Overweight (x) . | . . Average Overweight (x) . | . . Largest Inventory Capacity 5 | 5 5 Average Capacity 5 | 5 5 Most Carried 5 | 2 5 Average Carried 3 | 1 3 Final Capacity 5 | 5 5 Final Carried 4 | 2 4 Class Distribution -------------------- 100% | Mutant Dominant Class ---------------- Mutant | -10/Materials Resources | -11 -10 ----------- Run | Yrd Mat Matter Collected 84 | 84 . Remotely . | . . Salvage Created . | . . Parts . | . . Haulers Intercepted . | . . Recyclers Shooed . | . . Parts Field Recycled . | . . Retrieved Matter . | . . Parts Self-Destructed . | . . Prevented . | . . Kills | -11 -10 ------- Run | Yrd Mat Combat Hostiles Destroyed . | . . Classes Destroyed . | . . Best Kill Streak . | . . Combat Bots Only . | . . Max Kills in Single Turn . | . . Gunslinging . | . . Exploded . | . . Melee . | . . Uniques/NPCs Destroyed . | . . Combat | -11 -10 -------- Run | Yrd Mat Hostile Shots Fired 43 | . 43 Missed 15 | . 15 Damage Taken 297 | . 297 Core 257 | . 257 Absorbed by Shields . | . . Core Remaining (%) 100 | 100 . Volleys Fired . | . . Largest . | . . Hottest . | . . Shots Fired . | . . Gun . | . . Cannon . | . . Launcher . | . . Special . | . . Kinetic . | . . Thermal . | . . Explosive . | . . Electromagnetic . | . . Robot Hit Streak . | . . Robot Miss Streak . | . . Penetration Max . | . . Secondary Targets . | . . Shots Hit Robots . | . . Core Hits 1 | . 1 Critical Kills . | . . Critical Parts Destroyed . | . . Critical Strikes . | . . Melee Attacks . | . . Impact . | . . Slashing . | . . Piercing . | . . Sneak Attacks . | . . Combat Hostiles . | . . Follow-up Attacks . | . . Damage Inflicted 60 | . 60 Guns . | . . Cannons . | . . Explosions . | . . Melee . | . . Ramming 60 | . 60 Kinetic . | . . Thermal . | . . Explosive . | . . Electromagnetic . | . . Impact . | . . Slashing . | . . Piercing . | . . Highest Corruption . | . . Average Corruption . | . . Corruption Purged . | . . Corruption Blocked . | . . Overload Shots . | . . Overflow Damage . | . . Projectiles . | . . Explosions . | . . Melee . | . . Knockbacks . | . . Impact . | . . Kinetic . | . . Secondary . | . . Self-Inflicted Damage 25 | . 25 Shots . | . . Rammed 16 | . 16 Targets Rammed 16 | . 16 Kicked . | . . Crushed . | . . Highest Temperature . | . . Average Temperature . | . . Received Heat Transfer 42 | . 42 Siege Activations . | . . Robots Corrupted . | . . Combat Hostiles . | . . Parts Fried . | . . Impact Corruptions . | . . Robots Melted . | . . Combat Hostiles . | . . Parts Melted . | . . Heat Transferred . | . . Parts Sabotaged . | . . Parts Stolen . | . . Parts Stripped . | . . Power Chain Reactions . | . . Alert | -11 -10 ------- Run | Yrd Mat Peak Influence 45 | . 45 Initial . | . . Average 19 | . 23 Maximum Alert Level . | . . Low Security (%) 100 | 100 100 Level 1 . | . . Level 2 . | . . Level 3 . | . . Level 4 . | . . Level 5 . | . . High Security . | . . Max Security . | . . Squads Dispatched 2 | . 2 Investigation 1 | . 1 Extermination . | . . Reinforcement 1 | . 1 Assault . | . . Garrison . | . . Intercept . | . . Searches Triggered . | . . Construction Impeded . | . . Haulers Reinforced . | . . Active Scanning Responses . | . . Cargo Convoy Interrupts . | . . Stealth | -11 -10 --------- Run | Yrd Mat Distress Signals 1 | . 1 Communications Jammed . | . . Distress Signals . | . . Times Spotted 11 | . 11 Peak Tracking Total 9 | . 9 Tactical Retreats 2 | . 2 Traps | -11 -10 ------- Run | Yrd Mat Traps Triggered 1 | . 1 Indirectly . | . . Trap Hack Attempts . | . . Triggered . | . . Disarmed . | . . Reprogrammed . | . . Reused . | . . Traps Extracted . | . . Installed . | . . Triggered . | . . Machines | -11 -10 ---------- Run | Yrd Mat Machines Disabled . | . . Max in Single Turn . | . . Machines Repaired . | . . Machines Dismantled . | . . Machines Sabotaged . | . . Overloaded Fab Kills . | . . Hacking | -11 -10 --------- Run | Yrd Mat Machines Accessed . | . . Terminals . | . . Fabricators . | . . Repair Stations . | . . Recycling Units . | . . Scanalyzers . | . . Garrison Access . | . . Total Hacks . | . . Successful . | . . Failed . | . . Catastrophic . | . . Database Lockouts . | . . Manual . | . . Terminals . | . . Fabricators . | . . Repair Stations . | . . Recycling Units . | . . Scanalyzers . | . . Garrison Access . | . . Terminal Hacks . | . . Fabricator Hacks . | . . Repair Station Hacks . | . . Recycling Unit Hacks . | . . Scanalyzer . | . . Garrison Access Hacks . | . . Unauthorized Hacks . | . . Terminals . | . . Fabricators . | . . Repair Stations . | . . Recycling Units . | . . Scanalyzers . | . . Garrison Access . | . . Data Cores Recovered . | . . Used . | . . Hacking Detections . | . . Full Trace Events . | . . Feedback Events . | . . Feedback Blocked . | . . Robot Schematics Acquired . | . . Robots Built . | . . Authchips . | . . Time . | . . Total Robot Build Rating . | . . Part Schematics Acquired . | . . Parts Built . | . . Authchips . | . . Time . | . . Total Part Build Rating . | . . Parts Repaired . | . . Time . | . . Parts Recycled . | . . Recycled Matter . | . . Retrieved Matter . | . . Retrieved Components . | . . Parts Scanalyzed . | . . Part Schematics Acquired . | . . Parts Damaged . | . . Bothacking | -11 -10 ------------ Run | Yrd Mat Used RIF Installer . | . . Robots Hacked . | . . Non-combat . | . . Combat . | . . Robot Hacks Applied . | . . Relay Couplers Released . | . . Fabnet Peak Effective % . | . . Robots Rewired . | . . Allies Hacked . | . . Hacks Repelled . | . . Allies | -11 -10 -------- Run | Yrd Mat Total Allies . | . . Largest Group . | . . Highest-Rated Group . | . . Highest-Rated Ally . | . . Total Orders . | . . Ally Attacks . | . . Total Damage . | . . Kills . | . . Allies Corrupted . | . . Allies Melted . | . . Intel | -11 -10 ------- Run | Yrd Mat Robot Analysis Total . | . . Derelict Logs Recovered . | . . Drone Launches . | . . Drone Recoveries . | . . Exploration | -11 -10 ------------- Run | Yrd Mat Turns Passed 122 | 21 101 Spaces Moved 176 | 32 144 Core 176 | 32 144 Treads . | . . Legs . | . . Wheels . | . . Hover . | . . Flight . | . . Fastest Speed 50 | 50 50 Average Speed 50 | 50 50 Slowest Speed 50 | 50 50 Overloaded Moves . | . . Propulsion Burnouts . | . . Robots Hopped . | . . Cave-ins Triggered . | . . Exploration Rate (%) 10 | 4 17 Regions Visited 1 Branch Regions . Pre-discovered Areas . | . . Known Exits Taken . | . . Unknown Exits Taken 1 | 1 . Scrap Searched . | . . Spaces Dug . | . . Terrain Destroyed . | . . Melee . | . . Projectile . | . . AOE . | . . Terrain Rammed . | . . Walls Destroyed . | . . Machines Disabled . | . . Actions | -11 -10 --------- Run | Yrd Mat Total 210 | 37 173 Wait 5 | . 5 Move 175 | 31 144 Hop . | . . Pick Up 7 | 3 4 Fast Attach . | . . Attach 4 | 1 3 Detach 2 | 1 1 Swap . | . . Drop 1 | 1 . Fire . | . . Melee . | . . Ram 16 | . 16 Kick . | . . Crush . | . . Escape Stasis . | . . Rewire . | . . Trap . | . . Miscellaneous . | . . Route ------- -11/Scrapyard -10/Materials (discovered 1 exit: [*Min]) History --------- Turn | Location | Event 13 | -11/Scrapyard | Discovered new exit (range 16) 22 | -11/Scrapyard | Entered Materials 23 | -10/Materials | Discovered new exit (range 11) 107 | -10/Materials | Core integrity fell below 50% 113 | -10/Materials | Core integrity fell below 20% 123 | -10/Materials | Destroyed by S-10 Pest with Light Assault Rifle Last Messages --------------- O-16 Technician: "IFF HANDSHAKE FAILED. SECURING TERMINAL." K-01 Serf collects debris. ALERT: Hostiles spotted, dispatching reinforcements to Terminal M007. Terminal unresponsive. Acquired Terrain Scanner. Slammed into G-34 Mercenary. ECM Suite destroyed. Terrain Scanner destroyed. Slammed into S-10 Pest. Destabilizing: Core damaged (-10). Slammed into S-10 Pest. Slammed into G-34 Mercenary. Destabilizing: Core damaged (-2). Slammed into G-34 Mercenary. Triggered Alarm Trap. An alarm sounds. ALERT: Alarm triggered, dispatching investigation squad. Map ----- +----------------------------------------------------+ | | | ??????????????????????????????????? | | ??????????????????????????????????? | | ??????????????????????????????????? | | ??????????????????????????????????? | | ??????????????????????????????????? | | ??????????????????????????????????? | | ??????????????????????????????????? | | ??????????????????????????????????? | | ??????????????????????????????????? | | ??????????????????????????????????? | | ??????????????????????????????????? | | ??????????????????????????????????? | | ??????????????????????????????????? | | ??????????????????????????????????? | | ??????????????????????????????????? | | ??????????????????????????????????? | | ??????????????????????????????????? | | ??????????????????????????????????? | | ??????????????????????????????????? | | ?????????###??????????????????????? | | ?????????+ ??????????????????????? | | ?????????#w#??????????????????????? | | ??#####??#w#??????????????????????? | | ??# #??# #??????????????????????? | | ??# T #??#@#??????????????????????? | | ??# #??# #??????????????????????? | | ??## ##??# #????####????????#?????? | | ???# #???# #?? #??????????????? | | ???# #???# # """#??????????????? | | ???# #???# + ! """#??#???????????? | | ???# #???# # """#??????????????? | | ???# #???# #?? #??????????????? | | ???# #???# #????####??????????????? | | ???# #???# #??#???????########????? | | ???# #???# #??????????# #????? | | ???# #???# #??????##### !#????? | | ???# #???# #??##### # #????? | | ???# #####s#??# T + #????? | | ???# #??# ### # "Y" #????? | | ???# #??# ####/## """ #????? | | ???# ]! #??# ## ########????? | | ???# ]! #??# ## #???????????? | | ???# ]! #?## ## #???????????? | | ???# ### # #???????????? | | ???# + #???????????? | | ???####### ### # #???????????? | | ????????## ####### #???????????? | | ????????# #????# #????? ?????? | | ????????# < #???## #???????????? | +----------------------------------------------------+ Best States ------------- Heat Dissipation 25 Energy Generation 5 Energy Capacity 100 Matter Stores 211 Matter Capacity 300 Sight Range 16 Terrain Scan Range 14 Terrain Scan Density 10 ECM Strength 1 Evasion (%) 50 Item Schematics ----------------- None Robot Schematics ------------------ None Fabricated ------------ Nothing Alien Tech Used ----------------- None Achievements -------------- None Challenges ------------ None Game ------ Seed VisualGrapheneTelecube Manual? 0 Play Time 00:05:15 Cumulative 75.5 hours Start 2025.03.29 @ 19:48:42 End 2025.03.29 @ 19:51:37 Sessions 1 Manual Loads 0 Difficulty Rogue Special Mode None Game No. 114 Rogue 100 Adventurer 14 Explorer 0 Win Type - Total 0 Types 0/0/0/0/0/0/0/0/0 Lore% 34 Gallery% 46 Achievement% 41 Wizard Run 0 Options --------- Layout 1 ASCII 0 Keyboard 0 Movement Mouse Keybinds 0 Fullscreen 1 Font 24/Smallcaps Map View 50x35 Zoom Use 0% Tactical HUD 0 Map Filters NONE Filters NONE Steam 1 RUN: a647df62-8a71-4139-9bdd-7617d4462e22